fUST/lending_fUST_20250524
["ID","MTS","AMOUNT","RATE_DAILY","PERIOD"]
[362179274,1748063444921,-471.96,0.00023835,3]
[362179275,1748063444930,-1075.97,0.00023835,3]
[362179276,1748063444940,-430.0,0.00023835,3]
[362179277,1748063444950,-430.0,0.00023835,3]
[362179278,1748063444960,-2400.47,0.00023835,3]
[362179279,1748063444970,-1620.66,0.00023835,3]
[362179280,1748063444980,-815.3,0.00023835,3]
[362179281,1748063444990,-600.54,0.00023835,3]
[362179282,1748063445000,-991.41,0.00023835,3]
[362179283,1748063445010,-962.97,0.00023835,3]
[362179284,1748063445020,-580.2,0.00023835,3]
[362179285,1748063445029,-430.0,0.00023835,3]
[362179286,1748063445039,-430.0,0.00023835,3]
[362179287,1748063445049,-744.0,0.00023835,3]
[362179288,1748063445059,-229.99114379,0.00023866,10]
[362179289,1748063445068,-38313.04063216,0.000239,2]
[362179290,1748063445078,-10321.47,0.00023911,2]
[362179291,1748063445087,-229.99114379,0.00023969,10]
[362179292,1748063445097,-962.276,0.00023982,2]
[362179293,1748063445107,-2508.23255833,0.00024,2]
[362179294,1748063445116,-2000.0,0.00024,5]
[362179295,1748063445126,-229.99114379,0.00024072,10]
[362179296,1748063445135,-430.0,0.00024109,3]
[362179297,1748063445146,-430.0,0.00024109,3]
[362179298,1748063445155,-507.83572784,0.00024109,3]
[362179299,1748063445164,-430.0,0.00024109,3]
[362179300,1748063445174,-2060.7,0.00024109,3]
[362179301,1748063445184,-430.0,0.00024109,3]
[362179302,1748063445194,-430.0,0.00024109,3]
[362179303,1748063445203,-430.0,0.00024109,3]
[362179304,1748063445212,-430.0,0.00024109,3]
[362179305,1748063445222,-430.0,0.00024109,3]
[362179306,1748063445232,-430.0,0.00024109,3]
[362179307,1748063445242,-449.77,0.00024109,2]
[362179308,1748063445284,-471.5,0.00024109,3]
[362179309,1748063445294,-473.26,0.00024109,3]
[362179310,1748063445303,-1347.84,0.00024109,3]
[362179311,1748063445313,-855.91,0.00024109,3]
[362179312,1748063445322,-430.0,0.00024109,3]
[362179313,1748063445331,-471.96,0.00024109,3]
[362179314,1748063445340,-1075.97,0.00024109,3]
[362179315,1748063445350,-395.57186481,0.00024109,3]
[362179316,1748063445360,-430.0,0.00024109,3]
[362179317,1748063445369,-2400.47,0.00024109,3]
[362179318,1748063445378,-1620.66,0.00024109,3]
[362179319,1748063445388,-815.3,0.00024109,3]
[362179320,1748063445397,-600.54,0.00024109,3]
[362179321,1748063445407,-991.41,0.00024109,3]
[362179322,1748063445417,-962.97,0.00024109,3]
[362179323,1748063445426,-580.2,0.00024109,3]
[362179324,1748063445435,-395.42,0.00024109,3]
[362179325,1748063445446,-430.0,0.00024109,3]
[362179326,1748063445455,-428.39005214,0.00024123,2]
[362179327,1748063445465,-229.99114379,0.00024176,10]
[362179328,1748063445474,-229.99114379,0.00024279,10]
[362179329,1748063445484,-276.163083,0.00024316,2]
[362179330,1748063445493,-276.163083,0.00024316,2]
[362179331,1748063445503,-151.0,0.00024316,2]
[362179332,1748063445513,-229.99114379,0.00024383,11]
[362179333,1748063445522,-430.0,0.00024383,3]
[362179334,1748063445532,-430.0,0.00024383,3]
[362179335,1748063445542,-177.6099,0.00024383,7]
[362179336,1748063445551,-430.0,0.00024383,3]
[362179337,1748063445560,-2060.7,0.00024383,3]
[362179338,1748063445570,-430.0,0.00024383,3]
[362179339,1748063445580,-430.0,0.00024383,3]
[362179340,1748063445590,-430.0,0.00024383,3]
[362179341,1748063445599,-430.0,0.00024383,3]
[362179342,1748063445609,-345.2273002,0.00024383,3]
[362179343,1748063445627,-430.0,0.00024383,3]
[362179344,1748063445642,-449.77,0.00024383,2]
[362179345,1748063445654,-471.5,0.00024383,3]
[362179346,1748063445664,-473.26,0.00024383,3]
[362179347,1748063445674,-1347.84,0.00024383,3]
[362179348,1748063445683,-855.91,0.00024383,3]
[362179349,1748063445694,-430.0,0.00024383,3]
[362179350,1748063445707,-471.96,0.00024383,3]
[362179351,1748063445718,-1075.97,0.00024383,3]
[362179352,1748063445728,-430.0,0.00024383,3]
[362179353,1748063445739,-2400.47,0.00024383,3]
[362179354,1748063445749,-1620.66,0.00024383,3]
[362179355,1748063445759,-815.3,0.00024383,3]
[362179356,1748063445770,-600.54,0.00024383,3]
[362179357,1748063445780,-991.41,0.00024383,3]
[362179358,1748063445790,-962.97,0.00024383,3]
[362179359,1748063445800,-580.2,0.00024383,3]
[362179360,1748063445810,-430.0,0.00024383,3]
[362179361,1748063445819,-229.99114379,0.00024486,11]
[362179362,1748063445830,-2000.0,0.000245,3]
[362179363,1748063445840,-2401.32903148,0.000245,120]
[362179364,1748063445849,-1015.669917,0.000245,2]
[362179365,1748063445859,-157.21774186,0.00024575,2]
[362179366,1748063445871,-229.99114379,0.0002459,11]
[362179367,1748063445883,-41225.27981688,0.00024651,2]
[362179368,1748063445894,-200.1495738,0.00024657,3]
[362179369,1748063445905,-430.0,0.00024657,3]
[362179370,1748063445915,-430.0,0.00024657,3]
[362179371,1748063445926,-430.0,0.00024657,3]
[362179372,1748063445935,-2060.7,0.00024657,3]
[362179373,1748063445946,-430.0,0.00024657,3]
[362179374,1748063445956,-430.0,0.00024657,3]
[362179375,1748063445967,-430.0,0.00024657,3]
[362179376,1748063445976,-430.0,0.00024657,3]
[362179377,1748063445987,-430.0,0.00024657,3]
[362179378,1748063445996,-449.77,0.00024657,2]
[362179379,1748063446005,-471.5,0.00024657,3]
[362179380,1748063446015,-473.26,0.00024657,3]
[362179381,1748063446025,-1347.84,0.00024657,3]
[362179382,1748063446034,-855.91,0.00024657,3]
[362179383,1748063446044,-430.0,0.00024657,3]
[362179384,1748063446054,-471.96,0.00024657,3]
[362179385,1748063446064,-1075.97,0.00024657,3]
[362179386,1748063446074,-478.96068556,0.00024657,3]
[362179387,1748063446084,-2400.47,0.00024657,3]
[362179388,1748063446094,-1620.66,0.00024657,3]
[362179389,1748063446104,-815.3,0.00024657,3]
[362179391,1748063446113,-600.54,0.00024657,3]
[362179392,1748063446123,-991.41,0.00024657,3]
[362179393,1748063446134,-962.97,0.00024657,3]
[362179394,1748063446145,-580.2,0.00024657,3]
[362179395,1748063446155,-430.0,0.00024657,3]
[362179396,1748063446167,-380.0,0.00024658,2]
[362179397,1748063446177,-229.78275161,0.00024658,2]
[362179398,1748063446188,-229.99114379,0.00024693,11]
[362179399,1748063446199,-229.99114379,0.00024797,11]
[362179400,1748063446210,-17816.03,0.000248,2]
[362179402,1748063446222,-1000.0,0.000248,5]
[362179403,1748063446232,-1000.0,0.000248,6]
[362179404,1748063446242,-177.6099,0.000248,7]
[362179405,1748063446256,-276.163083,0.000248,2]
[362179406,1748063446266,-276.163083,0.000248,2]
[362179408,1748063446276,-29361.4248997,0.000248,2]
[362179410,1748063446286,-262.192628,0.000248,2]
[362179411,1748063446296,-428.39005214,0.000248,2]
[362179413,1748063446306,-2200.0,0.00024836,2]
[362179414,1748063446317,-2258.57114613,0.00024858,2]
[362179415,1748063446326,-500.0,0.00024868,7]
[362179417,1748063446337,-500.0,0.00024873,2]
[362179418,1748063446347,-500.0,0.00024873,2]
[362179419,1748063446356,-500.0,0.00024873,2]
[362179420,1748063446367,-500.0,0.00024873,2]
[362179421,1748063446377,-600.0,0.00024873,2]
[362179423,1748063446387,-500.0,0.00024873,2]
[362179424,1748063446398,-5028.9236066,0.00024897,2]
[362179425,1748063446408,-160.0,0.00024899,2]
[362179426,1748063446418,-63478.55462191,0.000249,2]
[362179427,1748063446428,-5485.89349411,0.000249,3]
[362179428,1748063446438,-395553.35688951,0.000249,2]
[362179431,1748063446566,-367988.86770449,0.000249,2]
[362179432,1748063446576,-2506.2088538,0.000249,2]
[362179434,1748063446586,-229.99114379,0.000249,12]
[362179436,1748063446597,-157.21774186,0.00024904,2]
[362179437,1748063446609,-500.0,0.00024907,10]
[362179439,1748063446619,-500.0,0.00024907,10]
[362179440,1748063446629,-500.0,0.00024907,10]
[362179441,1748063446640,-429.9196843,0.00024907,10]
[362179442,1748063446649,-500.0,0.00024907,10]
[362179443,1748063446658,-500.0,0.00024907,10]
[362179444,1748063446668,-500.0,0.00024907,10]
[362179446,1748063446678,-500.0,0.00024907,10]
[362179448,1748063446688,-500.0,0.00024907,10]
[362179449,1748063446701,-2258.57114613,0.00024921,2]
[362179450,1748063446712,-219.75756408,0.0002493,2]
[362179451,1748063446721,-367.20007626,0.00024931,3]
[362179452,1748063446731,-430.0,0.00024931,3]
[362179453,1748063446743,-430.0,0.00024931,3]
[362179454,1748063446753,-2060.7,0.00024931,3]
[362179455,1748063446764,-430.0,0.00024931,3]
[362179456,1748063446776,-430.0,0.00024931,3]
[362179457,1748063446786,-430.0,0.00024931,3]
[362179458,1748063446797,-430.0,0.00024931,3]
[362179459,1748063446808,-276.163083,0.00024931,2]
[362179460,1748063446817,-276.163083,0.00024931,2]
[362179461,1748063446828,-430.0,0.00024931,3]
[362179463,1748063446838,-449.77,0.00024931,2]
[362179464,1748063446850,-471.5,0.00024931,3]
[362179465,1748063446860,-473.26,0.00024931,3]
[362179466,1748063446870,-1347.84,0.00024931,3]
[362179467,1748063446880,-855.91,0.00024931,3]
[362179468,1748063446891,-430.0,0.00024931,3]
[362179469,1748063446901,-471.96,0.00024931,3]
[362179470,1748063446911,-1075.97,0.00024931,3]
[362179471,1748063446922,-2400.47,0.00024931,3]
[362179472,1748063446933,-1620.66,0.00024931,3]
[362179473,1748063446943,-815.3,0.00024931,3]
[362179474,1748063446955,-600.54,0.00024931,3]
[362179475,1748063446967,-991.41,0.00024931,3]
[362179476,1748063446978,-962.97,0.00024931,3]
[362179477,1748063446988,-580.2,0.00024931,3]
[362179478,1748063446998,-430.0,0.00024931,3]
[362179479,1748063447009,-500.0,0.00024973,2]
[362179480,1748063447019,-500.0,0.00024973,2]
[362179481,1748063447029,-504.34986462,0.00024973,2]
[362179482,1748063447039,-501.52565351,0.00024973,2]
[362179483,1748063447050,-502.34598194,0.00024973,2]
[362179484,1748063447061,-500.0,0.00024973,2]
[362179485,1748063447071,-2258.57114613,0.0002499,2]
[362179486,1748063447081,-9034.28458452,0.0002499,2]
[362179487,1748063447092,-15482.2,0.00024998,2]
[362179488,1748063447102,-233268.74779433,0.00025,30]
[362179489,1748063447115,-3275.15707,0.00025,30]
[362179490,1748063447263,-430.0,0.00021917,3]
[362179491,1748063447274,-430.0,0.00021917,3]
[362179492,1748063447285,-448.24313391,0.00024109,3]
[362179493,1748063447394,-404.0,0.00023771,2]
[362179494,1748063447403,-295.75686609,0.00024109,3]
[362179495,1748063447414,-744.0,0.00024383,3]
[362179496,1748063447424,-744.0,0.00024657,3]
[362179497,1748063447434,-744.0,0.00024931,3]
[362179498,1748063447444,-7918.25531681,0.00025,30]
[362179499,1748063447457,-14757.22919749,0.00025,30]
[362179500,1748063447469,-17664.53838249,0.00025,30]
[362179508,1748064113332,-15848.74202581,0.0002,2]
[362179509,1748064113355,-173.442553,0.00021518,2]
[362179510,1748064113385,-500.0,0.00021916,2]
[362179511,1748064113409,-500.0,0.00021916,2]
[362179512,1748064113434,-500.0,0.00021916,2]
[362179513,1748064113458,-142.31542119,0.00021916,2]
[362179547,1748064631748,-342.23130186,0.00015,2]
[362179548,1748064631758,-357.68457881,0.00021916,2]
[362179549,1748064631768,-500.0,0.00021916,2]
[362179550,1748064631777,-500.0,0.00021916,2]
[362179551,1748064631787,-500.0,0.00021916,2]
[362179552,1748064631797,-525.0,0.00021916,2]
[362179554,1748064631806,-500.0,0.00021916,2]
[362179555,1748064631816,-500.0,0.00021916,2]
[362179558,1748064631826,-500.0,0.00021916,2]
[362179560,1748064631835,-500.0,0.00021916,2]
[362179561,1748064631845,-100.10001526,0.00021916,2]
[362179570,1748064631919,-399.89998474,0.00021916,2]
[362179572,1748064631929,-500.0,0.00021916,2]
[362179574,1748064631939,-201.50920385,0.00021916,2]
[362179576,1748064631949,-189.179,0.00021916,2]
[362179579,1748064631958,-433.12312753,0.00021917,3]
[362179581,1748064631967,-295.36859913,0.00021917,3]
[362179584,1748064631977,-404.45666876,0.00021917,3]
[362179587,1748064631986,-430.0,0.00021917,3]
[362179588,1748064631995,-430.0,0.00021917,3]
[362179589,1748064632005,-430.0,0.00021917,3]
[362179590,1748064632014,-302.85852421,0.00021917,3]
[362179591,1748064632024,-430.0,0.00021917,3]
[362179592,1748064632034,-430.0,0.00021917,3]
[362179593,1748064632044,-430.0,0.00021917,3]
[362179594,1748064632054,-86.6393247,0.00021917,3]
[362179598,1748064637761,-343.3606753,0.00021917,3]
[362179599,1748064637770,-430.0,0.00021917,3]
[362179600,1748064637779,-430.0,0.00021917,3]
[362179601,1748064637789,-295.01421105,0.00021917,3]
[362179602,1748064637803,-430.0,0.00021917,3]
[362179603,1748064637813,-430.0,0.00021917,3]
[362179605,1748064637823,-221.91076367,0.00021917,3]
[362179606,1748064637833,-430.0,0.00021917,3]
[362179607,1748064637842,-430.0,0.00021917,3]
[362179608,1748064637852,-430.0,0.00021917,3]
[362179609,1748064637862,-430.0,0.00021917,3]
[362179610,1748064637873,-248.72194273,0.00021917,3]
[362179611,1748064637882,-430.0,0.00021917,3]
[362179612,1748064637892,-430.0,0.00021917,3]
[362179613,1748064637902,-430.0,0.00021917,3]
[362179614,1748064637912,-430.0,0.00021917,3]
[362179615,1748064637922,-430.0,0.00021917,3]
[362179616,1748064637931,-430.0,0.00021917,3]
[362179617,1748064637943,-196.29704414,0.00021917,3]
[362179618,1748064637952,-430.0,0.00021917,3]
[362179619,1748064637962,-430.0,0.00021917,3]
[362179620,1748064637972,-430.0,0.00021917,3]
[362179621,1748064637982,-430.0,0.00021917,3]
[362179622,1748064637991,-430.0,0.00021917,3]
[362179623,1748064638001,-430.0,0.00021917,3]
[362179624,1748064638010,-289.59525751,0.00021917,3]
[362179625,1748064638020,-420.53821797,0.00021917,3]
[362179626,1748064638029,-430.0,0.00021917,3]
[362179627,1748064638040,-430.0,0.00021917,3]
[362179628,1748064638049,-430.0,0.00021917,3]
[362179629,1748064638059,-430.0,0.00021917,3]
[362179630,1748064638069,-430.0,0.00021917,3]
[362179631,1748064638079,-430.0,0.00021917,3]
[362179632,1748064638089,-430.0,0.00021917,3]
[362179633,1748064638099,-430.0,0.00021917,3]
[362179634,1748064638109,-406.68501601,0.00021917,3]
[362179635,1748064638119,-430.0,0.00021917,3]
[362179636,1748064638129,-402.64787691,0.00021917,3]
[362179637,1748064638139,-430.0,0.00021917,3]
[362179638,1748064638149,-430.0,0.00021917,3]
[362179639,1748064638159,-404.64354736,0.00021917,3]
[362179640,1748064638169,-430.0,0.00021917,3]
[362179641,1748064638179,-430.0,0.00021917,3]
[362179642,1748064638188,-400.0,0.00021917,3]
[362179643,1748064638197,-507.73136039,0.00021917,3]
[362179644,1748064638208,-430.0,0.00021917,3]
[362179645,1748064638217,-430.0,0.00021917,3]
[362179646,1748064638227,-430.0,0.00021917,3]
[362179647,1748064638237,-430.0,0.00021917,3]
[362179648,1748064638247,-430.0,0.00021917,3]
[362179649,1748064638257,-504.81630172,0.00021917,3]
[362179650,1748064638267,-275.41652247,0.00021917,3]
[362179651,1748064638277,-430.0,0.00021917,3]
[362179652,1748064638287,-230.98783582,0.00021917,3]
[362179653,1748064638296,-430.0,0.00021917,3]
[362179654,1748064638305,-430.0,0.00021917,3]
[362179655,1748064638315,-430.0,0.00021917,3]
[362179656,1748064638325,-430.0,0.00021917,3]
[362179657,1748064638334,-430.0,0.00021917,3]
[362179658,1748064638343,-430.0,0.00021917,3]
[362179659,1748064638353,-430.0,0.00021917,3]
[362179660,1748064638362,-430.0,0.00021917,3]
[362179661,1748064638372,-166.35129202,0.00021917,3]
[362179662,1748064638381,-430.0,0.00021917,3]
[362179663,1748064638391,-430.0,0.00021917,3]
[362179664,1748064638400,-430.0,0.00021917,3]
[362179665,1748064638410,-430.0,0.00021917,3]
[362179666,1748064638419,-536.60502441,0.00021917,3]
[362179667,1748064638429,-430.0,0.00021917,3]
[362179668,1748064638439,-415.88761476,0.00021917,3]
[362179669,1748064638449,-430.0,0.00021917,3]
[362179670,1748064638458,-530.42828225,0.00021917,3]
[362179671,1748064638468,-430.0,0.00021917,3]
[362179672,1748064638477,-434.59658965,0.00021917,3]
[362179673,1748064638487,-430.0,0.00021917,3]
[362179674,1748064638502,-430.0,0.00021917,3]
[362179675,1748064638512,-430.0,0.00021917,3]
[362179676,1748064638522,-430.0,0.00021917,3]
[362179677,1748064638531,-502.89974966,0.00021917,3]
[362179678,1748064638543,-430.0,0.00021917,3]
[362179679,1748064638552,-430.0,0.00021917,3]
[362179680,1748064638561,-430.0,0.00021917,3]
[362179681,1748064638572,-526.62914077,0.00021917,3]
[362179682,1748064638582,-430.0,0.00021917,3]
[362179683,1748064638593,-430.0,0.00021917,3]
[362179684,1748064638602,-315.82201057,0.00021917,3]
[362179685,1748064638612,-445.32150362,0.00021917,3]
[362179686,1748064638622,-455.29490475,0.00021917,3]
[362179687,1748064638632,-430.0,0.00021917,3]
[362179688,1748064638641,-460.38488216,0.00021917,3]
[362179689,1748064638651,-504.51250397,0.00021917,3]
[362179690,1748064638661,-430.0,0.00021917,3]
[362179691,1748064638671,-260.0,0.00021917,3]
[362179692,1748064638681,-430.0,0.00021917,3]
[362179693,1748064638691,-197.29933521,0.00021917,3]
[362179694,1748064638701,-430.0,0.00021917,3]
[362179695,1748064638711,-430.0,0.00021917,3]
[362179696,1748064638721,-227.70660154,0.00021917,3]
[362179697,1748064638730,-430.0,0.00021917,3]
[362179698,1748064638740,-430.0,0.00021917,3]
[362179699,1748064638750,-357.16532336,0.00021917,3]
[362179700,1748064638760,-430.0,0.00021917,3]
[362179701,1748064638770,-430.0,0.00021917,3]
[362179702,1748064638780,-430.0,0.00021917,3]
[362179703,1748064638903,-430.0,0.00021917,3]
[362179704,1748064638913,-430.0,0.00021917,3]
[362179705,1748064638923,-430.0,0.00021917,3]
[362179706,1748064638934,-430.0,0.00021917,3]
[362179707,1748064638944,-430.0,0.00021917,3]
[362179708,1748064638954,-430.0,0.00021917,3]
[362179709,1748064638964,-357.51626057,0.00021917,3]
[362179710,1748064638973,-430.0,0.00021917,3]
[362179711,1748064638983,-430.0,0.00021917,3]
[362179712,1748064638993,-430.0,0.00021917,3]
[362179713,1748064639003,-430.0,0.00021917,3]
[362179714,1748064639013,-430.0,0.00021917,3]
[362179715,1748064639023,-400.0,0.00021917,3]
[362179716,1748064639033,-430.0,0.00021917,3]
[362179717,1748064639043,-430.0,0.00021917,3]
[362179718,1748064639052,-430.0,0.00021917,3]
[362179719,1748064639063,-373.24,0.00021917,3]
[362179720,1748064639072,-430.0,0.00021917,3]
[362179721,1748064639083,-430.0,0.00021917,3]
[362179722,1748064639094,-406.48397188,0.00021917,3]
[362179723,1748064639106,-430.0,0.00021917,3]
[362179724,1748064639116,-430.0,0.00021917,3]
[362179725,1748064639125,-430.0,0.00021917,3]
[362179726,1748064639135,-430.0,0.00021917,3]
[362179727,1748064639144,-430.0,0.00021917,3]
[362179728,1748064639154,-430.0,0.00021917,3]
[362179729,1748064639164,-456.73508157,0.00021917,3]
[362179730,1748064639174,-430.0,0.00021917,3]
[362179731,1748064639183,-400.0,0.00021917,3]
[362179732,1748064639194,-320.0,0.00021917,3]
[362179733,1748064639205,-430.0,0.00021917,3]
[362179734,1748064639215,-430.0,0.00021917,3]
[362179735,1748064639225,-409.57631984,0.00021917,3]
[362179736,1748064639235,-430.0,0.00021917,3]
[362179737,1748064639245,-430.0,0.00021917,3]
[362179738,1748064639255,-430.0,0.00021917,3]
[362179739,1748064639266,-430.0,0.00021917,3]
[362179740,1748064639276,-430.0,0.00021917,3]
[362179741,1748064639286,-430.0,0.00021917,3]
[362179742,1748064639295,-430.0,0.00021917,3]
[362179743,1748064639305,-430.0,0.00021917,3]
[362179744,1748064639315,-430.0,0.00021917,3]
[362179745,1748064639325,-430.0,0.00021917,3]
[362179746,1748064639334,-391.78911354,0.00021917,3]
[362179747,1748064639344,-430.0,0.00021917,3]
[362179748,1748064639354,-430.0,0.00021917,3]
[362179749,1748064639364,-430.0,0.00021917,3]
[362179750,1748064639374,-430.0,0.00021917,3]
[362179751,1748064639384,-430.0,0.00021917,3]
[362179752,1748064639395,-430.0,0.00021917,3]
[362179753,1748064639406,-430.0,0.00021917,3]
[362179755,1748064639415,-430.0,0.00021917,3]
[362179756,1748064639425,-430.0,0.00021917,3]
[362179757,1748064639436,-75.14894197,0.00021917,3]
[362179758,1748064639533,-354.85105803,0.00021917,3]
[362179759,1748064639542,-430.0,0.00021917,3]
[362179760,1748064639552,-430.0,0.00021917,3]
[362179761,1748064639562,-430.0,0.00021917,3]
[362179762,1748064639572,-430.0,0.00021917,2]
[362179763,1748064639582,-430.0,0.00021917,3]
[362179764,1748064639591,-430.0,0.00021917,3]
[362179765,1748064639601,-471.37319427,0.00021917,3]
[362179766,1748064639611,-448.3451854,0.00021917,3]
[362179767,1748064639620,-430.0,0.00021917,3]
[362179768,1748064639630,-309.85546364,0.00021917,3]
[362179769,1748064639641,-120.14453636,0.00021917,3]
[362179770,1748064639651,-430.0,0.00021917,3]
[362179771,1748064639660,-215.3551031,0.00021917,3]
[362179772,1748064639670,-430.0,0.00021917,3]
[362179773,1748064639679,-430.0,0.00021917,3]
[362179774,1748064639689,-430.0,0.00021917,3]
[362179775,1748064639698,-673.92,0.00021917,3]
[362179776,1748064639708,-430.0,0.00021917,3]
[362179777,1748064639718,-430.0,0.00021917,3]
[362179778,1748064639728,-430.0,0.00021917,3]
[362179779,1748064639737,-430.0,0.00021917,3]
[362179780,1748064639747,-430.0,0.00021917,3]
[362179781,1748064639756,-537.98,0.00021917,3]
[362179782,1748064639767,-430.0,0.00021917,3]
[362179783,1748064639776,-265.10031882,0.00021917,3]
[362179784,1748064639785,-314.50042706,0.00021917,3]
[362179785,1748064639795,-430.0,0.00021917,3]
[362179786,1748064639804,-1612.39,0.00021917,3]
[362179787,1748064639814,-810.33,0.00021917,3]
[362179788,1748064639824,-430.0,0.00021917,3]
[362179789,1748064639834,-273.41051827,0.00021917,3]
[362179790,1748064639843,-430.0,0.00021917,3]
[362179791,1748064639853,-430.0,0.00021917,3]
[362179792,1748064639863,-430.0,0.00021917,3]
[362179793,1748064639873,-533.8,0.00021917,3]
[362179794,1748064639883,-412.31706246,0.00021917,3]
[362179795,1748064639893,-430.0,0.00021917,3]
[362179796,1748064639902,-118.07528845,0.00021917,3]
[362179797,1748064640009,-311.92471155,0.00021917,3]
[362179798,1748064640020,-481.48,0.00021917,3]
[362179799,1748064640030,-430.0,0.00021917,3]
[362179800,1748064640041,-290.0,0.00021917,3]
[362179801,1748064640051,-1030.35,0.00021917,3]
[362179802,1748064640060,-430.0,0.00021917,3]
[362179803,1748064640070,-430.0,0.00021917,3]
[362179804,1748064640080,-433.16870905,0.00021917,3]
[362179805,1748064640090,-1082.07,0.00022171,10]
[362179806,1748064640100,-4882.32,0.0002219,2]
[362179807,1748064640109,-430.0,0.00022191,3]
[362179808,1748064640120,-369.1565716,0.00022191,3]
[362179809,1748064640129,-245.84086832,0.00022191,3]
[362179810,1748064640140,-430.0,0.00022191,3]
[362179811,1748064640150,-430.0,0.00022191,3]
[362179812,1748064640160,-430.0,0.00022191,3]
[362179813,1748064640170,-430.0,0.00022191,3]
[362179814,1748064640180,-430.0,0.00022191,2]
[362179815,1748064640191,-139.68913943,0.00022191,3]
[362179816,1748064640476,500.0,0.0002,120]
[362179834,1748064642845,-231.21871863,0.000219,6]
[362179835,1748064642855,-290.31086057,0.00022191,3]
[362179836,1748064642865,-430.0,0.00022191,3]
[362179837,1748064642875,-673.92,0.00022191,3]
[362179838,1748064642885,-430.0,0.00022191,3]
[362179839,1748064642895,-430.0,0.00022191,3]
[362179840,1748064642905,-430.0,0.00022191,3]
[362179841,1748064642914,-430.0,0.00022191,3]
[362179842,1748064642924,-430.0,0.00022191,3]
[362179843,1748064642934,-537.98,0.00022191,3]
[362179844,1748064642944,-381.40040829,0.00022191,3]
[362179845,1748064642954,-1612.39,0.00022191,3]
[362179846,1748064642964,-810.33,0.00022191,3]
[362179847,1748064642973,-430.0,0.00022191,3]
[362179848,1748064642983,-430.0,0.00022191,3]
[362179849,1748064642993,-430.0,0.00022191,3]
[362179850,1748064643003,-533.8,0.00022191,3]
[362179851,1748064643012,-430.0,0.00022191,3]
[362179852,1748064643022,-481.48,0.00022191,3]
[362179853,1748064643031,-430.0,0.00022191,3]
[362179854,1748064643042,-1030.35,0.00022191,3]
[362179855,1748064643051,-112.49251251,0.00022465,3]
[362179917,1748064645995,-317.50748749,0.00022465,3]
[362179919,1748064646005,-430.0,0.00022465,3]
[362179921,1748064646014,-430.0,0.00022465,3]
[362179923,1748064646023,-430.0,0.00022465,3]
[362179925,1748064646033,-48.81678536,0.00022465,2]
[362179927,1748064646047,-381.18321464,0.00022465,2]
[362179929,1748064646057,-430.0,0.00022465,3]
[362179931,1748064646066,-673.92,0.00022465,3]
[362179933,1748064646076,-430.0,0.00022465,3]
[362179935,1748064646085,-430.0,0.00022465,3]
[362179937,1748064646094,-430.0,0.00022465,3]
[362179939,1748064646104,-430.0,0.00022465,3]
[362179941,1748064646113,-212.73211536,0.00022465,3]
[362180286,1748064825787,500.0,0.0002,120]
[362180287,1748064830802,500.0,0.0002,120]
[362180288,1748064836605,500.0,0.0002,120]
[362180289,1748064848192,500.0,0.0002,120]